fUSD/lending_fUSD_20260507
["ID","MTS","AMOUNT","RATE_DAILY","PERIOD"]
[421766165,1778122232000,-699.29318587,0.00012209,2]
[421766166,1778122232000,-15353.69699041,0.00012209,2]
[421766164,1778122232000,-694.02982372,0.00012209,2]
[421766151,1778122232000,-551.11787795,0.00012208,2]
[421766163,1778122232000,-211.44535705,0.00012208,2]
[421766149,1778122232000,-300.0,0.00012208,2]
[421766162,1778122232000,-437.436765,0.00012208,2]
[421766147,1778122232000,-1498.882122,0.00012147,2]
[421766202,1778122233000,-150.0,0.00012734,2]
[421766203,1778122233000,-150.0,0.00012734,2]
[421766201,1778122233000,-150.0,0.00012677,2]
[421766208,1778122233000,-150.0,0.00012791,2]
[421766198,1778122233000,-150.0,0.00012621,2]
[421766200,1778122233000,-150.0,0.00012658,2]
[421766196,1778122233000,-150.0,0.00012583,2]
[421766199,1778122233000,-150.0,0.00012621,2]
[421766197,1778122233000,-170.43,0.00012585,2]
[421766195,1778122233000,-150.0,0.00012583,2]
[421766205,1778122233000,-150.0,0.00012734,2]
[421766215,1778122233000,-500.0,0.00012962,2]
[421766210,1778122233000,-150.0,0.00012848,2]
[421766212,1778122233000,-150.0,0.00012886,2]
[421766211,1778122233000,-150.0,0.00012886,2]
[421766207,1778122233000,-150.0,0.00012734,2]
[421766213,1778122233000,-150.0,0.00012886,2]
[421766194,1778122233000,-150.0,0.00012583,2]
[421766206,1778122233000,-150.0,0.00012734,2]
[421766204,1778122233000,-150.0,0.00012734,2]
[421766209,1778122233000,-150.0,0.0001281,2]
[421766216,1778122233000,-150.0,0.00012962,2]
[421766214,1778122233000,-150.0,0.00012905,2]
[421766188,1778122233000,-150.0,0.0001245,2]
[421766171,1778122233000,-150.0,0.00012279,2]
[421766189,1778122233000,-622.55,0.0001245,2]
[421766168,1778122233000,-150.57011938,0.00012279,2]
[421766167,1778122233000,-157.37,0.00012239,2]
[421766169,1778122233000,-150.0,0.00012279,2]
[421766170,1778122233000,-150.0,0.00012279,2]
[421766218,1778122233000,-150.0,0.00012962,2]
[421766172,1778122233000,-151.24199493,0.00012279,2]
[421766177,1778122233000,-150.0,0.00012279,2]
[421766180,1778122233000,-150.0,0.00012355,2]
[421766178,1778122233000,-707.84,0.00012279,2]
[421766179,1778122233000,-150.0,0.00012336,2]
[421766193,1778122233000,-150.0,0.00012564,2]
[421766181,1778122233000,-150.0,0.00012393,2]
[421766175,1778122233000,-150.0,0.00012279,2]
[421766176,1778122233000,-150.0,0.00012279,2]
[421766174,1778122233000,-150.0,0.00012279,2]
[421766184,1778122233000,-150.0,0.00012431,2]
[421766183,1778122233000,-150.0,0.00012431,2]
[421766186,1778122233000,-150.99,0.00012431,2]
[421766190,1778122233000,-150.0,0.00012507,2]
[421766192,1778122233000,-150.0,0.00012507,2]
[421766187,1778122233000,-9999.99,0.00012431,2]
[421766191,1778122233000,-150.0,0.00012507,2]
[421766182,1778122233000,-150.0,0.00012431,2]
[421766227,1778122233000,-150.0,0.00013113,2]
[421766173,1778122233000,-151.98649058,0.00012279,2]
[421766217,1778122233000,-150.0,0.00012962,2]
[421766247,1778122233000,-420.0,0.00013398,2]
[421766248,1778122233000,-150.0,0.00013416,2]
[421766250,1778122233000,-150.0,0.00013416,2]
[421766251,1778122233000,-1680.0,0.00013428,2]
[421766253,1778122233000,-150.0,0.00013473,2]
[421766252,1778122233000,-377.97985956,0.00013463,2]
[421766254,1778122233000,-150.0,0.00013492,2]
[421766256,1778122233000,-150.0,0.00013492,2]
[421766257,1778122233000,-255.8630623,0.00013497,2]
[421766258,1778122233000,-500.0,0.00013497,2]
[421766255,1778122233000,-150.0,0.00013492,2]
[421766259,1778122233000,-200.54349385,0.00013497,2]
[421766261,1778122233000,-500.0,0.00013497,2]
[421766260,1778122233000,-500.0,0.00013497,2]
[421766262,1778122233000,-323237.31774141,0.00013498,2]
[421766263,1778122233000,-500.0,0.00013497,2]
[421766265,1778122233000,-547.06233102,0.00013497,2]
[421766266,1778122233000,-32138.37404383,0.00013498,2]
[421766264,1778122233000,-604.18947655,0.00013497,2]
[421766267,1778122233000,-8420.20331306,0.00013498,2]
[421766268,1778122233000,-260.03248731,0.00013498,2]
[421766269,1778122233000,-18675.70720983,0.00013498,2]
[421766226,1778122233000,-170.43,0.00013105,2]
[421766244,1778122233000,-150.0,0.0001336,2]
[421766245,1778122233000,-1810.619,0.00013395,2]
[421766185,1778122233000,-9999.99,0.00012431,2]
[421766249,1778122233000,-150.0,0.00013416,2]
[421766243,1778122233000,-150.0,0.00013341,2]
[421766228,1778122233000,-150.0,0.00013132,2]
[421766220,1778122233000,-150.0,0.00013018,2]
[421766224,1778122233000,-150.0,0.00013038,2]
[421766222,1778122233000,-150.0,0.00013037,2]
[421766219,1778122233000,-150.0,0.00012962,2]
[421766221,1778122233000,-150.0,0.00013037,2]
[421766225,1778122233000,-150.0,0.00013075,2]
[421766234,1778122233000,-150.0,0.00013189,2]
[421766233,1778122233000,-150.0,0.00013189,2]
[421766230,1778122233000,-150.0,0.00013189,2]
[421766223,1778122233000,-150.0,0.00013037,2]
[421766235,1778122233000,-157.99,0.00013236,2]
[421766242,1778122233000,-150.0,0.00013341,2]
[421766238,1778122233000,-440.92,0.00013302,2]
[421766241,1778122233000,-150.0,0.00013341,2]
[421766237,1778122233000,-150.0,0.00013265,2]
[421766246,1778122233000,-186.489,0.00013395,2]
[421766240,1778122233000,-150.0,0.00013303,2]
[421766231,1778122233000,-150.0,0.00013189,2]
[421766239,1778122233000,-150.0,0.00013303,2]
[421766232,1778122233000,-150.0,0.00013189,2]
[421766229,1778122233000,-150.0,0.00013189,2]
[421766236,1778122233000,-150.0,0.00013246,2]
[421766296,1778122238000,-500.0,0.00013497,2]
[421766289,1778122238000,-500.0,0.00013497,2]
[421766286,1778122238000,-500.0,0.00013497,2]
[421766293,1778122238000,-500.0,0.00013497,2]
[421766294,1778122238000,-500.0,0.00013497,2]
[421766297,1778122238000,-500.0,0.00013497,2]
[421766298,1778122238000,-500.0,0.00013497,2]
[421766303,1778122238000,-500.0,0.00013497,2]
[421766295,1778122238000,-500.0,0.00013497,2]
[421766301,1778122238000,-500.0,0.00013497,2]
[421766304,1778122238000,-500.0,0.00013497,2]
[421766299,1778122238000,-500.0,0.00013497,2]
[421766283,1778122238000,-500.0,0.00013497,2]
[421766305,1778122238000,-500.0,0.00013497,2]
[421766284,1778122238000,-500.0,0.00013497,2]
[421766273,1778122238000,-306.21698855,0.00013497,2]
[421766285,1778122238000,-500.0,0.00013497,2]
[421766272,1778122238000,-500.0,0.00013497,2]
[421766271,1778122238000,-192.94286718,0.00013497,2]
[421766274,1778122238000,-2.15501645,0.00013497,2]
[421766277,1778122238000,-500.0,0.00013497,2]
[421766278,1778122238000,-500.0,0.00013497,2]
[421766275,1778122238000,-500.0,0.00013497,2]
[421766300,1778122238000,-500.0,0.00013497,2]
[421766276,1778122238000,-500.0,0.00013497,2]
[421766280,1778122238000,-500.0,0.00013497,2]
[421766291,1778122238000,-500.0,0.00013497,2]
[421766290,1778122238000,-500.0,0.00013497,2]
[421766279,1778122238000,-500.0,0.00013497,2]
[421766287,1778122238000,-500.0,0.00013497,2]
[421766288,1778122238000,-500.0,0.00013497,2]
[421766282,1778122238000,-500.0,0.00013497,2]
[421766292,1778122238000,-166.7453072,0.00013497,2]
[421766302,1778122238000,-500.0,0.00013497,2]
[421766281,1778122238000,-500.0,0.00013497,2]
[421766308,1778122238000,-500.0,0.00013497,2]
[421766327,1778122238000,-170.43,0.00013624,2]
[421766329,1778122238000,-156.54486892,0.00013644,2]
[421766333,1778122238000,-158.068991,0.00013644,2]
[421766331,1778122238000,-169.35882072,0.00013644,2]
[421766328,1778122238000,-156.66335347,0.00013644,2]
[421766326,1778122238000,-709.38220764,0.00013598,2]
[421766335,1778122238000,-221.06698802,0.00013644,2]
[421766337,1778122238000,-185.48615149,0.00013658,2]
[421766349,1778122238000,-380.52932165,0.00013668,2]
[421766347,1778122238000,-5179.20770353,0.00013668,2]
[421766348,1778122238000,-8297.23437027,0.00013668,2]
[421766344,1778122238000,-1108.13607521,0.00013668,2]
[421766339,1778122238000,-4847.92633267,0.00013667,2]
[421766341,1778122238000,-71215.96128237,0.00013668,2]
[421766319,1778122238000,-481.05411296,0.00013568,2]
[421766332,1778122238000,-166.65606893,0.00013644,2]
[421766325,1778122238000,-23217.60661725,0.00013598,2]
[421766306,1778122238000,-500.0,0.00013497,2]
[421766330,1778122238000,-158.05999187,0.00013644,2]
[421766313,1778122238000,-500.0,0.00013497,2]
[421766324,1778122238000,-4484.03144563,0.00013598,2]
[421766309,1778122238000,-500.0,0.00013497,2]
[421766312,1778122238000,-500.0,0.00013497,2]
[421766310,1778122238000,-500.0,0.00013497,2]
[421766307,1778122238000,-500.0,0.00013497,2]
[421766320,1778122238000,-166.75655651,0.00013568,2]
[421766318,1778122238000,-2500.0,0.00013568,2]
[421766316,1778122238000,-150.0,0.0001353,2]
[421766311,1778122238000,-500.0,0.00013497,2]
[421766315,1778122238000,-2117268.36520456,0.00013498,2]
[421766317,1778122238000,-5000.0,0.00013568,2]
[421766321,1778122238000,-2361.05552109,0.00013568,2]
[421766323,1778122238000,-150.0,0.00013587,2]
[421766322,1778122238000,-150.0,0.00013568,2]
[421766314,1778122238000,-500.0,0.00013497,2]
[421766547,1778122240000,-342.108,0.00013668,2]
[421766543,1778122240000,-506695.56898814,0.00013668,2]
[421766550,1778122240000,-705.57329502,0.00013668,2]
[421766567,1778122240000,-8874.52577126,0.00013668,2]
[421766574,1778122240000,-9077.54866152,0.00013668,2]
[421766571,1778122240000,-8943.78386462,0.00013668,2]
[421766578,1778122240000,-7805.0,0.00013668,2]
[421766569,1778122240000,-8947.21879473,0.00013668,2]
[421766920,1778122243000,-75.10755805,0.00013598,2]
[421766918,1778122243000,-617.89244195,0.0001343,2]
[421766922,1778122243000,-236.51528239,0.00013598,2]
[421766923,1778122243000,-701.19426836,0.00013668,2]
[421766926,1778122243000,-1048.0,0.00013668,2]
[421766973,1778122243000,-351.012724,0.00013668,2]
[421766971,1778122243000,-603.0,0.00013668,2]
[421766983,1778122243000,-979.16666667,0.00013668,2]
[421766981,1778122243000,-10800.0,0.00013668,2]
[421766955,1778122243000,-21943.39881,0.00013668,2]
[421767274,1778122246000,-143891.36083281,0.00013668,2]
[421767265,1778122246000,-3004.53071096,0.00013668,2]
[421767525,1778122305000,-769.83369005,0.00013497,2]
[421767528,1778122305000,-769.83369005,0.00013497,2]
[421767524,1778122305000,-769.83369005,0.00013497,2]
[421767527,1778122305000,-769.83369005,0.00013497,2]
[421767526,1778122305000,-769.83369005,0.00013497,2]
[421767530,1778122305000,-18.27734666,0.00013497,2]
[421767529,1778122305000,-769.83369005,0.00013497,2]
[421767531,1778122306000,-751.55634339,0.00013497,2]
[421767533,1778122306000,-769.83369005,0.00013497,2]
[421767534,1778122306000,-769.83369005,0.00013497,2]
[421767532,1778122306000,-769.83369005,0.00013497,2]
[421767537,1778122306000,-399.28520636,0.00013497,2]
[421767535,1778122306000,-769.83369005,0.00013497,2]
[421767538,1778122306000,-370.54848369,0.00013497,2]
[421767536,1778122306000,-769.83369005,0.00013497,2]
[421767539,1778122307000,-769.83369005,0.00013497,2]
[421767547,1778122307000,-2500.01,0.00013568,2]
[421767546,1778122307000,-2500.0,0.00013568,2]
[421767545,1778122307000,-10.45937601,0.00013497,2]
[421767544,1778122307000,-769.83369005,0.00013497,2]
[421767542,1778122307000,-769.83369005,0.00013497,2]
[421767543,1778122307000,-769.83369005,0.00013497,2]
[421767541,1778122307000,-769.83369005,0.00013497,2]
[421767540,1778122307000,-769.83369005,0.00013497,2]
[421767548,1778122320000,-5000.01,0.00013544,2]
[421767549,1778122366000,-5000.01,0.00013544,2]
[421767551,1778122367000,-4849.01,0.00013544,2]
[421767550,1778122367000,-151.0,0.00013541,2]
[421767553,1778122368000,-5000.01,0.00013544,2]
[421767552,1778122368000,-5000.01,0.00013544,2]
[421767555,1778122592000,166.56,7.625e-05,2]
[421767554,1778122592000,166.56,6.672e-05,2]
[421767557,1778122593000,166.56,9.531e-05,2]
[421767556,1778122593000,166.56,8.578e-05,2]
[421767559,1778122593000,166.56,0.00011437,2]
[421767558,1778122593000,166.56,0.00010484,2]
[421767561,1778122874000,-686.4527488,0.0001239,2]
[421767565,1778122920000,-166.56,0.00012391,2]
[421767564,1778122920000,152.0,0.00030136,120]
[421767568,1778122921000,-166.56,0.0001289,2]
[421767567,1778122921000,-7.81,0.0001289,2]
[421767566,1778122921000,-158.75,0.00012758,2]
[421767570,1778122923000,-120.47,0.00013063,2]
[421767569,1778122923000,-46.09,0.0001289,2]
[421767571,1778122951000,281.72801831,8e-05,2]
[421767572,1778122955000,3664.56787214,0.00011,2]
[421767574,1778123021000,227.0,0.00030137,120]
[421767585,1778123074000,10000.01,0.00012,2]
[421767584,1778123074000,10000.01,0.00012,2]
[421767583,1778123074000,10000.01,0.00012,2]
[421767581,1778123074000,10000.01,0.00012,2]
[421767582,1778123074000,10000.01,0.00012,2]
[421767580,1778123074000,10000.01,0.00012,2]
[421767579,1778123074000,10000.01,0.00012,2]
[421767578,1778123074000,10000.01,0.00012,2]
[421767576,1778123074000,6053.71410955,0.00012,2]
[421767577,1778123074000,10000.01,0.00012,2]
[421767587,1778123259000,-5000.01,0.00012,2]
[421767588,1778123260000,-5000.01,0.00012,2]
[421767589,1778123261000,-5000.01,0.00012,2]
[421767592,1778123261000,772.68192955,0.0001,2]
[421767591,1778123261000,195110.35774181,0.000107,2]
[421767590,1778123261000,-5000.01,0.00012,2]
[421767594,1778123262000,-5000.01,0.00012,2]
[421767593,1778123262000,-5000.01,0.00012,2]
[421767595,1778123263000,300.0,0.00010699,2]
[421767639,1778123437000,-8723.40443954,0.00012,2]
[421767651,1778123438000,1001.78290186,0.00010699,2]
[421767649,1778123438000,1001.78290186,0.00010699,2]
[421767650,1778123438000,1001.78290186,0.00010699,2]
[421767652,1778123438000,1001.78290186,0.00010699,2]
[421767648,1778123438000,1001.78290186,0.00010699,2]
[421767654,1778123438000,1001.78290186,0.00010699,2]
[421767655,1778123438000,1001.78290186,0.00010699,2]
[421767657,1778123438000,1001.78290186,0.00010699,2]
[421767656,1778123438000,1001.78290186,0.00010699,2]
[421767653,1778123438000,1001.78290186,0.00010699,2]
[421767658,1778123439000,1001.78290186,0.00010699,2]
[421767659,1778123439000,1001.78290186,0.00010699,2]
[421767660,1778123439000,1001.78290186,0.00010699,2]
[421767661,1778123439000,1001.78290186,0.00010699,2]
[421767662,1778123439000,1001.78290186,0.00010699,2]
[421767663,1778123439000,1001.78290186,0.00010699,2]
[421767665,1778123439000,1001.78290186,0.00010699,2]
[421767664,1778123439000,1001.78290186,0.00010699,2]
[421767668,1778123439000,1001.78290186,0.00010699,2]
[421767666,1778123439000,1001.78290186,0.00010699,2]
[421767670,1778123439000,1001.78290186,0.00010699,2]
[421767667,1778123439000,1001.78290186,0.00010699,2]
[421767677,1778123439000,1001.78290186,0.00010699,2]
[421767676,1778123439000,1001.78290186,0.00010699,2]
[421767674,1778123439000,1001.78290186,0.00010699,2]
[421767678,1778123439000,1001.78290186,0.00010699,2]
[421767673,1778123439000,1001.78290186,0.00010699,2]
[421767671,1778123439000,1001.78290186,0.00010699,2]
[421767672,1778123439000,1001.78290186,0.00010699,2]
[421767669,1778123439000,1001.78290186,0.00010699,2]
[421767675,1778123439000,1001.78290186,0.00010699,2]
[421767685,1778123440000,1001.78290186,0.00010699,2]
[421767679,1778123440000,1001.78290186,0.00010699,2]
[421767681,1778123440000,1001.78290186,0.00010699,2]
[421767680,1778123440000,1001.78290186,0.00010699,2]
[421767682,1778123440000,1001.78290186,0.00010699,2]
[421767683,1778123440000,1001.78290186,0.00010699,2]
[421767688,1778123440000,1001.78290186,0.00010699,2]
[421767689,1778123440000,1001.78290186,0.00010699,2]
[421767684,1778123440000,1001.78290186,0.00010699,2]
[421767691,1778123440000,1001.78290186,0.00010699,2]
[421767698,1778123440000,1001.78290186,0.00010699,2]
[421767696,1778123440000,1001.78290186,0.00010699,2]
[421767695,1778123440000,1001.78290186,0.00010699,2]
[421767690,1778123440000,1001.78290186,0.00010699,2]
[421767693,1778123440000,1001.78290186,0.00010699,2]
[421767697,1778123440000,1001.78290186,0.00010699,2]
[421767692,1778123440000,1001.78290186,0.00010699,2]
[421767694,1778123440000,1001.78290186,0.00010699,2]
[421767700,1778123441000,1001.78290186,0.00010699,2]
[421767701,1778123441000,1001.78290186,0.00010699,2]
[421767703,1778123441000,1001.78290186,0.00010699,2]
[421767705,1778123441000,1001.78290186,0.00010699,2]
[421767704,1778123441000,1001.78290186,0.00010699,2]
[421767699,1778123441000,1001.78290186,0.00010699,2]
[421767712,1778123441000,-500.0,0.00011999,2]
[421767713,1778123441000,-500.0,0.00011999,2]
[421767716,1778123441000,-582.94363171,0.00011999,2]
[421767715,1778123441000,-622.93263359,0.00011999,2]
[421767702,1778123441000,1001.78290186,0.00010699,2]
[421767714,1778123441000,-179.10414361,0.00011999,2]
[421767717,1778123441000,-7615.02959109,0.00012,2]
[421767719,1778123442000,983.56866728,0.00010699,2]
[421767720,1778123442000,983.56866728,0.00010699,2]
[421767718,1778123442000,983.56866728,0.00010699,2]
[421767729,1778123442000,164.3333272,0.00010699,2]
[421767721,1778123442000,983.56866728,0.00010699,2]
[421767723,1778123442000,82.1666636,0.00010699,2]
[421767724,1778123442000,901.40200368,0.00010699,2]
[421767726,1778123442000,983.56866728,0.00010699,2]
[421767725,1778123442000,983.56866728,0.00010699,2]
[421767727,1778123442000,983.56866728,0.00010699,2]
[421767728,1778123442000,983.56866728,0.00010699,2]
[421767722,1778123442000,983.56866728,0.00010699,2]
[421767731,1778123442000,983.56866728,0.00010699,2]
[421767732,1778123442000,983.56866728,0.00010699,2]
[421767730,1778123442000,819.23534008,0.00010699,2]
[421767749,1778123442000,654.90201288,0.00010699,2]
[421767745,1778123442000,328.6666544,0.00010699,2]
[421767739,1778123442000,983.56866728,0.00010699,2]
[421767740,1778123442000,983.56866728,0.00010699,2]
[421767754,1778123442000,983.56866728,0.00010699,2]
[421767737,1778123442000,983.56866728,0.00010699,2]
[421767736,1778123442000,737.06867648,0.00010699,2]
[421767735,1778123442000,246.4999908,0.00010699,2]
[421767734,1778123442000,983.56866728,0.00010699,2]
[421767733,1778123442000,983.56866728,0.00010699,2]
[421767738,1778123442000,983.56866728,0.00010699,2]
[421767790,1778123443000,572.73534928,0.00010699,2]
[421767760,1778123443000,983.56866728,0.00010699,2]
[421767770,1778123443000,-9750.01,0.00012,2]
[421767776,1778123443000,983.56866728,0.00010699,2]
[421767765,1778123443000,983.56866728,0.00010699,2]
[421767768,1778123443000,-250.0,0.00011769,2]
[421767796,1778123443000,983.56866728,0.00010699,2]
[421767817,1778123443000,492.9999816,0.00010699,2]
[421767800,1778123443000,983.56866728,0.00010699,2]
[421767812,1778123443000,983.56866728,0.00010699,2]
[421767806,1778123443000,983.56866728,0.00010699,2]
[421767825,1778123443000,490.56868568,0.00010699,2]
[421767838,1778123443000,983.56866728,0.00010699,2]
[421767908,1778123443000,-10000.01,0.00012,2]
[421767786,1778123443000,410.833318,0.00010699,2]
[421767939,1778123444000,-10000.01,0.00012,2]
[421767941,1778123445000,-10000.01,0.00012,2]
[421767940,1778123445000,-10000.01,0.00012,2]
[421767942,1778123445000,150.0,0.00010698,2]
[421767943,1778123445000,300.0,0.00010698,2]
[421767944,1778123445000,-255.0,0.00011736,2]
[421767946,1778123445000,-9445.01,0.00012,2]
[421767945,1778123445000,-300.0,0.0001176,2]
[421767950,1778123446000,-5000.0,0.00012,2]
[421767949,1778123446000,-10000.01,0.00012,2]
[421767947,1778123446000,983.56866742,0.00010699,2]
[421767957,1778123514000,-5000.0,0.00012,2]
[421767956,1778123514000,-5000.0,0.00012,2]
[421767955,1778123514000,-5000.0,0.00012,2]
[421767953,1778123514000,-5000.0,0.00012,2]
[421767954,1778123514000,-5000.0,0.00012,2]
[421767959,1778123515000,-5000.0,0.00012,2]
[421767960,1778123515000,-5000.0,0.00012,2]
[421767962,1778123515000,-5000.0,0.00012,2]
[421767961,1778123515000,-5000.0,0.00012,2]
[421767963,1778123515000,-5000.0,0.00012,2]
[421767968,1778123515000,-5000.0,0.00012,2]
[421767966,1778123515000,-5000.0,0.00012,2]
[421767965,1778123515000,-5000.0,0.00012,2]
[421767967,1778123515000,-5000.0,0.00012,2]
[421767958,1778123515000,-5000.0,0.00012,2]
[421767970,1778123515000,1200.0,0.00010698,2]
[421767964,1778123515000,-5000.0,0.00012,2]
[421767969,1778123515000,-5000.0,0.00012,2]
[421767971,1778123517000,39169.0,0.00030137,120]
[421767972,1778123518000,-1680.0,0.00011768,2]
[421767991,1778123518000,-2000.0,0.00012092,2]
[421767990,1778123518000,-1633.92269608,0.00012081,2]
[421767988,1778123518000,-9999.99,0.00012065,2]
[421767992,1778123518000,-156.66335347,0.00012181,2]
[421767989,1778123518000,-3074.49745028,0.00012081,2]
[421767984,1778123518000,-47499.32055685,0.00012,2]
[421767987,1778123518000,-150.99,0.00012065,2]
[421767986,1778123518000,-319.62,0.00012065,2]
[421767985,1778123518000,-170.0,0.00012,2]
[421767983,1778123518000,-490.38716919,0.00012,2]
[421767979,1778123518000,-15050.51530549,0.00012,2]
[421767982,1778123518000,-3319.77029272,0.00012,2]
[421767981,1778123518000,-501.52740981,0.00012,2]
[421767977,1778123518000,-30939.83802738,0.00012,2]
[421767978,1778123518000,-1361.44572594,0.00012,2]
[421767976,1778123518000,-15918.94152549,0.00012,2]
[421767975,1778123518000,-5153.13992312,0.00012,2]
[421767974,1778123518000,-115146.99880737,0.00012,2]
[421767973,1778123518000,-170.0,0.00011999,2]
[421767993,1778123518000,-166.65606893,0.00012181,2]
[421767997,1778123518000,-150.0,0.00012406,2]
[421767980,1778123518000,-781.51955281,0.00012,2]
[421767996,1778123518000,-842.7,0.00012198,2]
[421767995,1778123518000,-150.0,0.00012181,2]
[421768011,1778123518000,-215.21040652,0.00012967,2]
[421768017,1778123518000,-151.0,0.00013168,2]
[421768014,1778123518000,-151.0,0.00013168,2]
[421768016,1778123518000,-151.0,0.00013168,2]
[421768015,1778123518000,-151.0,0.00013168,2]
[421768012,1778123518000,-49.99,0.00013063,2]
[421768010,1778123518000,-215.21040652,0.00012967,2]
[421768004,1778123518000,-2883.38078597,0.00012813,2]
[421768006,1778123518000,-1337.3,0.00012869,2]
[421768013,1778123518000,-150.0,0.00013083,2]
[421768003,1778123518000,-500.0,0.00012767,2]
[421768007,1778123518000,-433.0,0.0001287,2]
[421768008,1778123518000,-1633.92269601,0.00012881,2]
[421768001,1778123518000,-249.93,0.00012609,2]
[421768002,1778123518000,-150.0,0.00012632,2]
[421767998,1778123518000,-2883.38078601,0.00012455,2]
[421768009,1778123518000,-2351.0,0.00012945,2]
[421768000,1778123518000,-1337.3,0.00012555,2]
[421767999,1778123518000,-1633.92269601,0.00012481,2]
[421768005,1778123518000,-150.0,0.00012858,2]
[421767994,1778123518000,-158.068991,0.00012181,2]
[421768057,1778123519000,-500.0,0.00013698,2]
[421768054,1778123519000,-1633.92269601,0.0001368,2]
[421768055,1778123519000,-500.0,0.00013698,2]
[421768053,1778123519000,-200.0,0.00013668,2]
[421768048,1778123519000,-101060.80993007,0.0001366,2]
[421768052,1778123519000,-28357.8004056,0.0001366,2]
[421768051,1778123519000,-408.5826379,0.0001366,2]
[421768047,1778123519000,-13722.5443114,0.0001366,2]
[421768067,1778123519000,-377.99793923,0.00013698,2]
[421768046,1778123519000,-2000.0,0.00013603,2]
[421768050,1778123519000,-86800.74668563,0.0001366,2]
[421768066,1778123519000,-500.0,0.00013698,2]
[421768076,1778123519000,-526.73005918,0.00013698,2]
[421768065,1778123519000,-500.0,0.00013698,2]
[421768062,1778123519000,-500.0,0.00013698,2]
[421768064,1778123519000,-500.0,0.00013698,2]
[421768059,1778123519000,-500.0,0.00013698,2]
[421768058,1778123519000,-500.0,0.00013698,2]
[421768063,1778123519000,-500.0,0.00013698,2]
[421768060,1778123519000,-500.0,0.00013698,2]
[421768069,1778123519000,-244.60104355,0.00013698,2]
[421768071,1778123519000,-500.0,0.00013698,2]
[421768049,1778123519000,-2190.3681756,0.0001366,2]
[421768075,1778123519000,-500.0,0.00013698,2]
[421768072,1778123519000,-500.0,0.00013698,2]
[421768056,1778123519000,-500.0,0.00013698,2]
[421768045,1778123519000,-151.0,0.00013568,2]
[421768026,1778123519000,-2003.0888,0.00013343,2]
[421768044,1778123519000,-33139.5584,0.00013568,2]
[421768070,1778123519000,-500.0,0.00013698,2]
[421768020,1778123519000,-151.0,0.00013168,2]
[421768018,1778123519000,-151.0,0.00013168,2]
[421768021,1778123519000,-2883.38078597,0.00013171,2]
[421768019,1778123519000,-151.0,0.00013168,2]
[421768023,1778123519000,-1633.92269601,0.0001328,2]
[421768033,1778123519000,-2064.2712,0.00013444,2]
[421768034,1778123519000,-12368.0,0.00013452,2]
[421768022,1778123519000,-1337.3,0.00013183,2]
[421768024,1778123519000,-150.0,0.00013309,2]
[421768028,1778123519000,-4655.4705,0.00013368,2]
[421768029,1778123519000,-5000.0,0.00013368,2]
[421768032,1778123519000,-2000.0,0.00013444,2]
[421768025,1778123519000,-494.72995913,0.00013343,2]
[421768031,1778123519000,-153.12137068,0.00013401,2]
[421768027,1778123519000,-166.56,0.00013344,2]
[421768030,1778123519000,-615.386242,0.00013368,2]
[421768035,1778123519000,-234.37006593,0.00013458,2]
[421768039,1778123519000,-150.0,0.00013466,2]
[421768038,1778123519000,-4847.92633267,0.00013466,2]
[421768037,1778123519000,-186.489,0.00013466,2]
[421768036,1778123519000,-1448.495,0.00013466,2]
[421768043,1778123519000,-221.06698802,0.00013534,2]